[Event "*** Titled Tuesday Blitz"]
[Site "Chess.com"]
[Date "2021.02.16"]
[Round "6"]
[White "Pintacara"]
[Black "Grineva_Marianna"]
[Result "1-0"]
[WhiteElo "2497"]
[BlackElo "2242"]
[TimeControl "180+1"]
[EndTime "11:09:29 PST"]
[Termination "Pintacara won by resignation"]

1. d4 {[%clk 0:03:00.9]} 1... d6 {[%clk 0:02:59.4]} 2. Bg5 {[%clk 0:03:00.4]}
2... Nd7 {[%clk 0:02:58.5]} 3. Nc3 {[%clk 0:02:59.3]} 3... Ngf6 {[%clk
0:02:57.6]} 4. e4 {[%clk 0:02:59]} 4... c6 {[%clk 0:02:54.6]} 5. f4 {[%clk
0:02:58.5]} 5... Qb6 {[%clk 0:02:33.6]} 6. Qd2 {[%clk 0:02:56.3]} 6... Qxb2
{[%clk 0:02:28.3]} 7. Rb1 {[%clk 0:02:56.1]} 7... Qa3 {[%clk 0:02:27.9]} 8. Nf3
{[%clk 0:02:43.3]} 8... Qa5 {[%clk 0:02:22.1]} 9. Bd3 {[%clk 0:02:37.8]} 9... g6
{[%clk 0:02:10]} 10. O-O {[%clk 0:02:16]} 10... Bg7 {[%clk 0:02:09.2]} 11. e5
{[%clk 0:02:00.4]} 11... dxe5 {[%clk 0:02:01.3]} 12. fxe5 {[%clk 0:01:55.6]}
12... Nd5 {[%clk 0:01:49]} 13. Nxd5 {[%clk 0:01:53.1]} 13... Qxd5 {[%clk
0:01:49.4]} 14. c4 {[%clk 0:01:48.9]} 14... Qe6 {[%clk 0:01:48.7]} 15. Bh6
{[%clk 0:01:10.4]} 15... O-O {[%clk 0:01:40.2]} 16. Bxg7 {[%clk 0:01:07.7]}
16... Kxg7 {[%clk 0:01:41.1]} 17. Ng5 {[%clk 0:00:59.1]} 17... Qg4 {[%clk
0:01:39.8]} 18. Rf4 {[%clk 0:00:55.2]} 18... Qh5 {[%clk 0:01:38.2]} 19. Rbf1
{[%clk 0:00:39.6]} 19... f5 {[%clk 0:01:26.6]} 20. Ne6+ {[%clk 0:00:34.1]} 20...
Kg8 {[%clk 0:01:27]} 21. Nxf8 {[%clk 0:00:33.9]} 21... Nxf8 {[%clk 0:01:24.3]}
22. g4 {[%clk 0:00:29.2]} 22... Qg5 {[%clk 0:01:14.2]} 23. h4 {[%clk 0:00:28.5]}
23... Qxh4 {[%clk 0:01:11]} 24. Qg2 {[%clk 0:00:15.8]} 24... g5 {[%clk
0:00:52.1]} 25. gxf5 {[%clk 0:00:14.5]} 25... Qh6 {[%clk 0:00:46.8]} 26. Rg4
{[%clk 0:00:13.8]} 26... Kf7 {[%clk 0:00:23.4]} 27. Rxg5 {[%clk 0:00:12.5]}
27... Qh4 {[%clk 0:00:20.6]} 28. f6 {[%clk 0:00:09]} 28... Qxd4+ {[%clk
0:00:19.5]} 29. Rf2 {[%clk 0:00:04.6]} 29... Ng6 {[%clk 0:00:19.1]} 30. fxe7+
{[%clk 0:00:04]} 30... Kxe7 {[%clk 0:00:20]} 31. Bxg6 {[%clk 0:00:03.6]} 31...
hxg6 {[%clk 0:00:19]} 32. Rxg6 {[%clk 0:00:04.5]} 32... Qd1+ {[%clk 0:00:17.2]}
33. Rf1 {[%clk 0:00:02.7]} 33... Qd4+ {[%clk 0:00:17.1]} 34. Qf2 {[%clk
0:00:03]} 34... Qxf2+ {[%clk 0:00:16.6]} 35. Rxf2 {[%clk 0:00:03.9]} 35... Be6
{[%clk 0:00:16.8]} 36. Rff6 {[%clk 0:00:03.9]} 36... Bf7 {[%clk 0:00:16.3]} 37.
Rg7 {[%clk 0:00:04.3]} 37... Rf8 {[%clk 0:00:15]} 38. Rh6 {[%clk 0:00:04.8]}
38... b6 {[%clk 0:00:14]} 39. e6 {[%clk 0:00:04.3]} 39... Rg8 {[%clk 0:00:12.6]}
40. Rxg8 {[%clk 0:00:02.4]} 40... Bxg8 {[%clk 0:00:13.5]} 41. Rg6 {[%clk
0:00:01.9]} 41... Bxe6 {[%clk 0:00:13.4]} 42. Rg4 {[%clk 0:00:02.8]} 42... Bxc4
{[%clk 0:00:13.7]} 43. Rxc4 {[%clk 0:00:02.4]} 43... Kd6 {[%clk 0:00:14.2]} 44.
Rc2 {[%clk 0:00:02.8]} 44... Kd5 {[%clk 0:00:14.6]} 45. Kf2 {[%clk 0:00:02.9]}
45... a5 {[%clk 0:00:14.7]} 46. Ke2 {[%clk 0:00:03.8]} 46... Kd4 {[%clk
0:00:14.9]} 47. Kd2 {[%clk 0:00:04.7]} 47... Kd5 {[%clk 0:00:15.3]} 48. Rb2
{[%clk 0:00:04.7]} 48... b5 {[%clk 0:00:15.7]} 49. Rb1 {[%clk 0:00:05.6]} 49...
a4 {[%clk 0:00:16.2]} 50. Kc3 {[%clk 0:00:06.5]} 50... Kc5 {[%clk 0:00:15.7]}
51. a3 {[%clk 0:00:07.4]} 51... Kb6 {[%clk 0:00:15.8]} 52. Rf1 {[%clk
0:00:07.2]} 52... Kc5 {[%clk 0:00:15.2]} 53. Rf5+ {[%clk 0:00:07.1]} 53... Kb6
{[%clk 0:00:15.4]} 54. Rh5 {[%clk 0:00:08]} 54... c5 {[%clk 0:00:15.5]} 55. Rh6+
{[%clk 0:00:08.1]} 55... Ka5 {[%clk 0:00:16.1]} 56. Rc6 {[%clk 0:00:08]} 56...
b4+ {[%clk 0:00:15.7]} 57. Kc4 {[%clk 0:00:06.5]} 57... bxa3 {[%clk 0:00:12.5]}
58. Rxc5+ {[%clk 0:00:07.3]} 58... Ka6 {[%clk 0:00:12]} 59. Rh5 {[%clk
0:00:08.2]} 59... a2 {[%clk 0:00:11.1]} 60. Rh1 {[%clk 0:00:08.8]} 60... a3
{[%clk 0:00:11.2]} 61. Ra1 {[%clk 0:00:09]} 61... Ka5 {[%clk 0:00:11.6]} 62.
Rxa2 {[%clk 0:00:09.5]} 62... Ka4 {[%clk 0:00:12.5]} 63. Ra1 {[%clk 0:00:09.4]}
63... Ka5 {[%clk 0:00:11.7]} 64. Rxa3+ {[%clk 0:00:09.7]} 64... Kb6 {[%clk
0:00:12.6]} 65. Ra4 {[%clk 0:00:08.7]} 65... Kc6 {[%clk 0:00:13.5]} 66. Ra5
{[%clk 0:00:08.7]} 66... Kd6 {[%clk 0:00:14.4]} 67. Rc5 {[%clk 0:00:08.9]} 67...
Ke6 {[%clk 0:00:14.3]} 68. Rd5 {[%clk 0:00:09.4]} 68... Kf6 {[%clk 0:00:15.2]}
1-0

[Event "*** Titled Tuesday Blitz"]
[Site "Chess.com"]
[Date "2021.02.16"]
[Round "6"]
[White "ChessFighter1975"]
[Black "starplatinum2030"]
[Result "0-1"]
[WhiteElo "2389"]
[BlackElo "2171"]
[TimeControl "180+1"]
[EndTime "11:09:29 PST"]
[Termination "starplatinum2030 won by checkmate"]

1. d4 {[%clk 0:02:53.3]} 1... d5 {[%clk 0:02:59.7]} 2. c4 {[%clk 0:02:53.1]}
2... dxc4 {[%clk 0:03:00.6]} 3. e3 {[%clk 0:02:52.7]} 3... Nf6 {[%clk
0:02:59.9]} 4. Bxc4 {[%clk 0:02:53.1]} 4... e6 {[%clk 0:02:59.1]} 5. Nf3 {[%clk
0:02:53.6]} 5... a6 {[%clk 0:02:58.6]} 6. O-O {[%clk 0:02:53.7]} 6... c5 {[%clk
0:02:58.8]} 7. a4 {[%clk 0:02:52.8]} 7... Nc6 {[%clk 0:02:57.5]} 8. Nc3 {[%clk
0:02:52.7]} 8... cxd4 {[%clk 0:02:57.2]} 9. exd4 {[%clk 0:02:51.2]} 9... Be7
{[%clk 0:02:57.2]} 10. Be3 {[%clk 0:02:51.7]} 10... O-O {[%clk 0:02:56.6]} 11.
h3 {[%clk 0:02:40.2]} 11... Nb4 {[%clk 0:02:56.2]} 12. Ne5 {[%clk 0:02:39.5]}
12... Nbd5 {[%clk 0:02:54.6]} 13. Bd3 {[%clk 0:02:36.9]} 13... Bd7 {[%clk
0:02:42.2]} 14. Bb1 {[%clk 0:02:28]} 14... Rc8 {[%clk 0:02:38.5]} 15. Bg5 {[%clk
0:02:21.1]} 15... Nxc3 {[%clk 0:02:28.4]} 16. bxc3 {[%clk 0:02:22]} 16... Rxc3
{[%clk 0:02:25.2]} 17. Qd2 {[%clk 0:02:14.3]} 17... Nd5 {[%clk 0:02:17.2]} 18.
Bxe7 {[%clk 0:01:51.8]} 18... Qxe7 {[%clk 0:02:13.6]} 19. Be4 {[%clk 0:01:52.3]}
19... Rfc8 {[%clk 0:02:04.5]} 20. Rfb1 {[%clk 0:01:44.4]} 20... b5 {[%clk
0:01:52.3]} 21. axb5 {[%clk 0:01:41.1]} 21... Bxb5 {[%clk 0:01:52.1]} 22. Rc1
{[%clk 0:00:56.9]} 22... Rxc1+ {[%clk 0:01:27.3]} 23. Rxc1 {[%clk 0:00:57.8]}
23... Rxc1+ {[%clk 0:01:27.2]} 24. Qxc1 {[%clk 0:00:58.7]} 24... Qc7 {[%clk
0:01:26]} 25. Qg5 {[%clk 0:00:28.3]} 25... f6 {[%clk 0:01:19.2]} 26. Qg4 {[%clk
0:00:28.7]} 26... f5 {[%clk 0:00:47.9]} 27. Bxf5 {[%clk 0:00:21]} 27... exf5
{[%clk 0:00:46.3]} 28. Qxf5 {[%clk 0:00:21.9]} 28... Qc1+ {[%clk 0:00:46.3]} 29.
Kh2 {[%clk 0:00:21.4]} 29... Qf4+ {[%clk 0:00:46.5]} 30. Qxf4 {[%clk 0:00:20.8]}
30... Nxf4 {[%clk 0:00:47.4]} 31. g3 {[%clk 0:00:17.8]} 31... Nd5 {[%clk
0:00:44]} 32. f4 {[%clk 0:00:17.2]} 32... a5 {[%clk 0:00:43.8]} 33. Nf3 {[%clk
0:00:16.6]} 33... a4 {[%clk 0:00:43.6]} 34. Nd2 {[%clk 0:00:17.5]} 34... a3
{[%clk 0:00:42.6]} 35. Nb3 {[%clk 0:00:17.6]} 35... a2 {[%clk 0:00:39.8]} 36.
Kg2 {[%clk 0:00:15.8]} 36... Ne3+ {[%clk 0:00:40]} 37. Kf3 {[%clk 0:00:14.8]}
37... Nc2 {[%clk 0:00:40.4]} 38. d5 {[%clk 0:00:13.3]} 38... a1=Q {[%clk
0:00:39.8]} 39. Nxa1 {[%clk 0:00:13.4]} 39... Nxa1 {[%clk 0:00:40.7]} 40. Ke4
{[%clk 0:00:13.6]} 40... Kf7 {[%clk 0:00:40.4]} 41. Ke5 {[%clk 0:00:14.5]} 41...
Nc2 {[%clk 0:00:38.6]} 42. g4 {[%clk 0:00:13.8]} 42... Na3 {[%clk 0:00:36]} 43.
d6 {[%clk 0:00:11.7]} 43... Bd7 {[%clk 0:00:32.6]} 44. f5 {[%clk 0:00:09.3]}
44... Nc4+ {[%clk 0:00:31.9]} 45. Kd5 {[%clk 0:00:09]} 45... Ne3+ {[%clk
0:00:32]} 46. Kc5 {[%clk 0:00:08.4]} 46... h5 {[%clk 0:00:25.2]} 47. gxh5 {[%clk
0:00:07.2]} 47... Nxf5 {[%clk 0:00:24.5]} 48. Kb6 {[%clk 0:00:07]} 48... Nxd6
{[%clk 0:00:22.6]} 49. Kc7 {[%clk 0:00:07.9]} 49... Ke7 {[%clk 0:00:21.9]} 50.
h4 {[%clk 0:00:06.9]} 50... Bg4 {[%clk 0:00:21.1]} 51. h6 {[%clk 0:00:05.1]}
51... gxh6 {[%clk 0:00:22]} 52. Kc6 {[%clk 0:00:05.6]} 52... Nf5 {[%clk
0:00:21.1]} 53. Kd5 {[%clk 0:00:06.5]} 53... Nxh4 {[%clk 0:00:20.2]} 54. Ke5
{[%clk 0:00:07.4]} 54... Ng6+ {[%clk 0:00:17.7]} 55. Ke4 {[%clk 0:00:07.2]}
55... h5 {[%clk 0:00:17.9]} 56. Ke3 {[%clk 0:00:08.1]} 56... Kf6 {[%clk
0:00:18]} 57. Kf2 {[%clk 0:00:09]} 57... Kg5 {[%clk 0:00:17.8]} 58. Kg3 {[%clk
0:00:09.9]} 58... h4+ {[%clk 0:00:18.4]} 59. Kg2 {[%clk 0:00:10.8]} 59... h3+
{[%clk 0:00:19]} 60. Kh2 {[%clk 0:00:11.7]} 60... Kh4 {[%clk 0:00:18]} 61. Kg1
{[%clk 0:00:12.6]} 61... Kg3 {[%clk 0:00:17.4]} 62. Kh1 {[%clk 0:00:12.7]} 62...
Bf3+ {[%clk 0:00:17.3]} 63. Kg1 {[%clk 0:00:12.9]} 63... h2+ {[%clk 0:00:18.2]}
64. Kf1 {[%clk 0:00:13.8]} 64... h1=Q# {[%clk 0:00:18.1]} 0-1

[Event "*** Titled Tuesday Blitz"]
[Site "Chess.com"]
[Date "2021.02.16"]
[Round "6"]
[White "FMOlexandrProhorov"]
[Black "kuba2006"]
[Result "1-0"]
[WhiteElo "2124"]
[BlackElo "2368"]
[TimeControl "180+1"]
[EndTime "11:09:31 PST"]
[Termination "FMOlexandrProhorov won by checkmate"]

1. e4 {[%clk 0:02:25]} 1... Nf6 {[%clk 0:03:00.9]} 2. e5 {[%clk 0:02:23.4]} 2...
Nd5 {[%clk 0:02:58.8]} 3. c4 {[%clk 0:02:23.8]} 3... Nb6 {[%clk 0:02:58.5]} 4.
a4 {[%clk 0:02:22.1]} 4... a5 {[%clk 0:02:53]} 5. d4 {[%clk 0:02:21.7]} 5... d6
{[%clk 0:02:52.4]} 6. exd6 {[%clk 0:02:21]} 6... exd6 {[%clk 0:02:53.3]} 7. Nc3
{[%clk 0:02:21.5]} 7... Be7 {[%clk 0:02:52.5]} 8. Nf3 {[%clk 0:02:21.4]} 8...
O-O {[%clk 0:02:52]} 9. h3 {[%clk 0:02:21]} 9... Bf6 {[%clk 0:02:51.1]} 10. Be2
{[%clk 0:02:19.5]} 10... Nc6 {[%clk 0:02:51.2]} 11. Be3 {[%clk 0:02:18.8]} 11...
d5 {[%clk 0:02:46.8]} 12. c5 {[%clk 0:02:15.3]} 12... Nc4 {[%clk 0:02:46.5]} 13.
Bxc4 {[%clk 0:02:13.2]} 13... dxc4 {[%clk 0:02:47.4]} 14. O-O {[%clk 0:02:13.8]}
14... Bf5 {[%clk 0:02:41.8]} 15. Re1 {[%clk 0:02:09.3]} 15... Nb4 {[%clk
0:02:36.9]} 16. Qd2 {[%clk 0:01:22.9]} 16... Nc2 {[%clk 0:02:26.7]} 17. Nb5
{[%clk 0:01:21.2]} 17... Nxa1 {[%clk 0:02:20.7]} 18. Rxa1 {[%clk 0:01:22.1]}
18... Bd7 {[%clk 0:01:40.9]} 19. Nc3 {[%clk 0:01:16.6]} 19... Bc6 {[%clk
0:01:30]} 20. Bf4 {[%clk 0:01:00.9]} 20... Bxf3 {[%clk 0:01:24.6]} 21. gxf3
{[%clk 0:00:59.2]} 21... Bxd4 {[%clk 0:01:17.3]} 22. Ne4 {[%clk 0:00:58.3]}
22... f5 {[%clk 0:01:10.8]} 23. Ng5 {[%clk 0:00:55.7]} 23... Qf6 {[%clk
0:00:59.7]} 24. Qe2 {[%clk 0:00:54]} 24... Rae8 {[%clk 0:00:58.1]} 25. Qxc4+
{[%clk 0:00:53.9]} 25... Kh8 {[%clk 0:00:57.7]} 26. Rd1 {[%clk 0:00:53.1]} 26...
h6 {[%clk 0:00:41.3]} 27. Rxd4 {[%clk 0:00:42]} 27... hxg5 {[%clk 0:00:39.4]}
28. Bxc7 {[%clk 0:00:42.5]} 28... Re1+ {[%clk 0:00:37]} 29. Kg2 {[%clk
0:00:42.1]} 29... f4 {[%clk 0:00:15.6]} 30. Rd7 {[%clk 0:00:40]} 30... Qf5
{[%clk 0:00:09]} 31. Qd4 {[%clk 0:00:38.6]} 31... Rf7 {[%clk 0:00:04.7]} 32.
Rd8+ {[%clk 0:00:33.6]} 32... Kh7 {[%clk 0:00:04.7]} 33. Rd5 {[%clk 0:00:34.5]}
33... Qg6 {[%clk 0:00:04.1]} 34. Rd6 {[%clk 0:00:27.1]} 34... Qh5 {[%clk
0:00:04.1]} 35. Qd3+ {[%clk 0:00:27.6]} 35... g6 {[%clk 0:00:03.3]} 36. Qd5
{[%clk 0:00:26.2]} 36... Ree7 {[%clk 0:00:03.2]} 37. Bd8 {[%clk 0:00:24.9]}
37... Rg7 {[%clk 0:00:01.9]} 38. Rf6 {[%clk 0:00:23.8]} 38... Ref7 {[%clk
0:00:01.7]} 39. Rxf7 {[%clk 0:00:22.7]} 39... Qh6 {[%clk 0:00:02.6]} 40. Rxg7+
{[%clk 0:00:22.5]} 40... Qxg7 {[%clk 0:00:03.5]} 41. Qd6 {[%clk 0:00:22.8]}
41... Qf7 {[%clk 0:00:03.4]} 42. Qe7 {[%clk 0:00:23.7]} 42... Kg7 {[%clk
0:00:03.7]} 43. Qxf7+ {[%clk 0:00:23.7]} 43... Kxf7 {[%clk 0:00:04.6]} 44. Bxa5
{[%clk 0:00:24.3]} 44... Ke6 {[%clk 0:00:05.5]} 45. b4 {[%clk 0:00:22.8]} 45...
Kd5 {[%clk 0:00:06.2]} 46. h4 {[%clk 0:00:23.2]} 46... gxh4 {[%clk 0:00:05.6]}
47. Kh3 {[%clk 0:00:24.1]} 47... g5 {[%clk 0:00:05.8]} 48. Kg4 {[%clk
0:00:24.2]} 48... Kc4 {[%clk 0:00:05]} 49. Kh3 {[%clk 0:00:22.3]} 49... Kb3
{[%clk 0:00:05.3]} 50. b5 {[%clk 0:00:19]} 50... Kxa4 {[%clk 0:00:05.4]} 51. c6
{[%clk 0:00:19.5]} 51... Kxa5 {[%clk 0:00:05.4]} 52. c7 {[%clk 0:00:18.6]} 52...
Kxb5 {[%clk 0:00:06.3]} 53. c8=Q {[%clk 0:00:19.5]} 53... b6 {[%clk 0:00:06.4]}
54. Qf5+ {[%clk 0:00:18.4]} 54... Ka4 {[%clk 0:00:05.8]} 55. Qxg5 {[%clk
0:00:19.3]} 55... b5 {[%clk 0:00:06.4]} 56. Qxf4+ {[%clk 0:00:20.2]} 56... b4
{[%clk 0:00:07.1]} 57. Kxh4 {[%clk 0:00:21.1]} 57... Ka3 {[%clk 0:00:06.6]} 58.
Qc1+ {[%clk 0:00:22]} 58... Kb3 {[%clk 0:00:06.7]} 59. Qb1+ {[%clk 0:00:22.9]}
59... Kc4 {[%clk 0:00:07]} 60. Kg4 {[%clk 0:00:23.8]} 60... b3 {[%clk
0:00:07.9]} 61. Kf4 {[%clk 0:00:24.7]} 61... Kc3 {[%clk 0:00:08.5]} 62. Ke4
{[%clk 0:00:25.6]} 62... b2 {[%clk 0:00:09.3]} 63. Ke3 {[%clk 0:00:26.5]} 63...
Kb3 {[%clk 0:00:09.7]} 64. Ke2 {[%clk 0:00:27.4]} 64... Kc3 {[%clk 0:00:09.9]}
65. Ke3 {[%clk 0:00:26.9]} 65... Kb3 {[%clk 0:00:10.1]} 66. Kd3 {[%clk
0:00:27.3]} 66... Ka3 {[%clk 0:00:10.1]} 67. Kc3 {[%clk 0:00:26.8]} 67... Ka4
{[%clk 0:00:11]} 68. Qxb2 {[%clk 0:00:27]} 68... Ka5 {[%clk 0:00:11.9]} 69. Qb4+
{[%clk 0:00:27.4]} 69... Ka6 {[%clk 0:00:12.8]} 70. Kc4 {[%clk 0:00:28.3]} 70...
Ka7 {[%clk 0:00:13.2]} 71. Qb5 {[%clk 0:00:28.3]} 71... Ka8 {[%clk 0:00:14.1]}
72. Kc5 {[%clk 0:00:27.6]} 72... Ka7 {[%clk 0:00:15]} 73. Kc6 {[%clk 0:00:27.8]}
73... Ka8 {[%clk 0:00:15.3]} 74. Qb7# {[%clk 0:00:28.7]} 1-0

[Event "*** Titled Tuesday Blitz"]
[Site "Chess.com"]
[Date "2021.02.16"]
[Round "6"]
[White "ENajer77"]
[Black "NikolaN98"]
[Result "0-1"]
[WhiteElo "2609"]
[BlackElo "2479"]
[TimeControl "180+1"]
[EndTime "11:09:35 PST"]
[Termination "NikolaN98 won on time"]

1. d4 {[%clk 0:03:00.9]} 1... e6 {[%clk 0:02:59.1]} 2. c4 {[%clk 0:02:59.6]}
2... f5 {[%clk 0:02:58.9]} 3. Nf3 {[%clk 0:02:56.9]} 3... Nf6 {[%clk 0:02:59]}
4. g3 {[%clk 0:02:53.8]} 4... Be7 {[%clk 0:02:58.4]} 5. Bg2 {[%clk 0:02:54.1]}
5... O-O {[%clk 0:02:58.8]} 6. O-O {[%clk 0:02:54.7]} 6... d6 {[%clk 0:02:59.1]}
7. Nc3 {[%clk 0:02:54.3]} 7... a5 {[%clk 0:02:59]} 8. b3 {[%clk 0:02:49.8]} 8...
Qe8 {[%clk 0:02:37.2]} 9. Bb2 {[%clk 0:02:37.8]} 9... Nbd7 {[%clk 0:02:37]} 10.
e3 {[%clk 0:02:32.1]} 10... e5 {[%clk 0:02:26.8]} 11. Nb5 {[%clk 0:02:19.1]}
11... Bd8 {[%clk 0:02:25.6]} 12. dxe5 {[%clk 0:02:19.6]} 12... dxe5 {[%clk
0:02:25.2]} 13. Ba3 {[%clk 0:02:19]} 13... e4 {[%clk 0:02:11]} 14. Nfd4 {[%clk
0:02:17.7]} 14... Rf7 {[%clk 0:02:03.2]} 15. f4 {[%clk 0:01:56.8]} 15... Nf8
{[%clk 0:01:49.4]} 16. Bh3 {[%clk 0:01:49]} 16... g6 {[%clk 0:01:48.1]} 17. Kh1
{[%clk 0:01:44.5]} 17... Ra6 {[%clk 0:01:44.5]} 18. Qe2 {[%clk 0:01:39.7]} 18...
Ne6 {[%clk 0:01:42]} 19. Rad1 {[%clk 0:01:10.8]} 19... a4 {[%clk 0:01:41.8]} 20.
Bb4 {[%clk 0:00:51]} 20... Bd7 {[%clk 0:01:20.1]} 21. Nxe6 {[%clk 0:00:46.9]}
21... Rxe6 {[%clk 0:01:17.4]} 22. Rd2 {[%clk 0:00:45.5]} 22... axb3 {[%clk
0:01:15.8]} 23. axb3 {[%clk 0:00:46.1]} 23... Bxb5 {[%clk 0:01:14.9]} 24. cxb5
{[%clk 0:00:45.7]} 24... Rd7 {[%clk 0:01:13]} 25. Rfd1 {[%clk 0:00:45.1]} 25...
Rxd2 {[%clk 0:01:03.1]} 26. Rxd2 {[%clk 0:00:45.6]} 26... Be7 {[%clk 0:01:02.9]}
27. Bc3 {[%clk 0:00:42.5]} 27... Rd6 {[%clk 0:00:52.3]} 28. Qc4+ {[%clk
0:00:38.5]} 28... Qf7 {[%clk 0:00:40]} 29. Bf1 {[%clk 0:00:20.3]} 29... Rxd2
{[%clk 0:00:33.4]} 30. Bxd2 {[%clk 0:00:18.4]} 30... Qxc4 {[%clk 0:00:32.8]} 31.
Bxc4+ {[%clk 0:00:18.6]} 31... Kf8 {[%clk 0:00:32.3]} 32. h3 {[%clk 0:00:17.3]}
32... Bc5 {[%clk 0:00:23.6]} 33. Kg2 {[%clk 0:00:17.1]} 33... h5 {[%clk
0:00:19.5]} 34. Kf2 {[%clk 0:00:15.7]} 34... c6 {[%clk 0:00:19.5]} 35. Ke2
{[%clk 0:00:13.4]} 35... Nd5 {[%clk 0:00:19]} 36. bxc6 {[%clk 0:00:12.4]} 36...
bxc6 {[%clk 0:00:19]} 37. Bc1 {[%clk 0:00:10.8]} 37... Ke7 {[%clk 0:00:18.7]}
38. Bd2 {[%clk 0:00:10.4]} 38... Kd6 {[%clk 0:00:18.8]} 39. Bc1 {[%clk
0:00:07.8]} 39... Kd7 {[%clk 0:00:17]} 40. Kf2 {[%clk 0:00:06.7]} 40... Kd6
{[%clk 0:00:17.2]} 41. Bd2 {[%clk 0:00:06.9]} 41... Kd7 {[%clk 0:00:17.1]} 42.
Be2 {[%clk 0:00:07.2]} 42... Bb4 {[%clk 0:00:15.4]} 43. Bxb4 {[%clk 0:00:05.5]}
43... Nxb4 {[%clk 0:00:16.3]} 44. g4 {[%clk 0:00:06]} 44... hxg4 {[%clk
0:00:16.1]} 45. hxg4 {[%clk 0:00:06.5]} 45... Kd6 {[%clk 0:00:15]} 46. g5 {[%clk
0:00:06.3]} 46... Nd5 {[%clk 0:00:12.5]} 47. Bc4 {[%clk 0:00:06]} 47... Kc5
{[%clk 0:00:12.7]} 48. Ke2 {[%clk 0:00:06.2]} 48... Kb4 {[%clk 0:00:12.9]} 49.
Kd2 {[%clk 0:00:06.3]} 49... Kc5 {[%clk 0:00:04.4]} 50. Ke2 {[%clk 0:00:05.6]}
50... Kb4 {[%clk 0:00:04.5]} 51. Kd2 {[%clk 0:00:05.6]} 51... Kc5 {[%clk
0:00:04.1]} 52. Be2 {[%clk 0:00:05.1]} 52... Kb4 {[%clk 0:00:03.9]} 53. Bd1
{[%clk 0:00:05]} 53... Nc3 {[%clk 0:00:02.7]} 54. Bc2 {[%clk 0:00:04.3]} 54...
Nd5 {[%clk 0:00:03]} 55. Bd1 {[%clk 0:00:03.6]} 55... Ka3 {[%clk 0:00:03.6]} 56.
Be2 {[%clk 0:00:01.2]} 56... Kb4 {[%clk 0:00:03.7]} 57. Ba6 {[%clk 0:00:01.7]}
57... Kxb3 {[%clk 0:00:03.9]} 58. Bb7 {[%clk 0:00:02.1]} 58... Ne7 {[%clk
0:00:04.3]} 59. Ba6 {[%clk 0:00:02.2]} 59... c5 {[%clk 0:00:04.7]} 60. Kc1
{[%clk 0:00:01.7]} 60... Kc3 {[%clk 0:00:03.7]} 61. Bb5 {[%clk 0:00:01.7]} 61...
c4 {[%clk 0:00:03.1]} 0-1